Cogmind - Beta 15 @@@ ROGUE MODE // 2025.08.06 @ 21:26:55 Player: Cracklepappy Result: Destroyed by D-53 Grenadier with Mini Grenade Launcher Performance ------------- Evolutions (0) 0 Regions Visited (2) 400 Robots Destroyed (31) 155 Value Destroyed (444) 444 Prototype IDs (0) 0 Alien Tech Used (0) 0 Bonus (0) 0 TOTAL SCORE: 999 Bonus ------- None Cogmind --------- Core Integrity 0/250 Matter 209/300 Energy 226/250 System Corruption 3% Temperature Cool (58) Movement Core (1550) Ox30 Location -10/Mines Parts ------- > --- POWER (1) -------- Ion Engine > --- PROPULSION (2) --- (None) > --- UTILITY (2) ------ Huge Storage Unit > --- WEAPON (2) ------- Beam Cannon Beam Cannon > --- INVENTORY (25) --- Light Ion Engine Wheel Wheel Wheel Wheel Subdweller Monowheel Heat Sink Medium Storage Unit Large Storage Unit Medium Matter Pod (0) High-capacity Matter Pod (161) Structural Scanner Seismic Detector Transport Network Coupler EM Pulse Gun Beam Cannon Beam Cannon Beam Cannon Beam Cannon Grenade Launcher Datajack Mining Laser Peak State ------------ > --- POWER ------------ Ion Engine > --- PROPULSION ------- Wheel Wheel > --- UTILITY ---------- Huge Storage Unit Seismic Detector > --- WEAPON ----------- Subdweller Beam Cannon Light Cannon > --- INVENTORY -------- Light Ion Engine Wheel Wheel Subdweller Monowheel Medium Storage Unit Large Storage Unit High-capacity Matter Pod Structural Scanner Seismic Detector Transport Network Coupler EM Pulse Gun Beam Cannon Beam Cannon Beam Cannon Beam Cannon Beam Cannon Beam Cannon Grenade Launcher Datajack Mining Laser Scrap Shield Fragment Scrap Shield Fragment [Rating: 10] Favorites ----------- Power Ion Engine Engine Ion Engine Propulsion Wheel Wheel Wheel Utility Seismic Detector Device Seismic Detector Storage Huge Storage Unit Weapon Light Cannon Energy Gun Medium Laser Energy Cannon Beam Cannon Ballistic Gun Light Assault Rifle Ballistic Cannon Light Cannon Launcher Grenade Launcher Special Weapon Mining Laser Special Melee Weapon Datajack Build | -11 -10 -10 ------- Run | Yrd Mat Min Slots Evolved . | . . . Power . | . . . Propulsion . | . . . Utility . | . . . Weapon . | . . . Parts Attached 23 | 9 12 2 Power 2 | 1 1 . Engine 2 | 1 1 . Core . | . . . Reactor . | . . . Propulsion 5 | 3 2 . Treads . | . . . Leg . | . . . Wheel 5 | 3 2 . Hover . | . . . Flight . | . . . Utility 5 | 2 3 . Device 2 | 1 1 . Storage 3 | 1 2 . Processor . | . . . Hackware . | . . . Protection . | . . . Artifact . | . . . Weapon 11 | 3 6 2 Energy Gun 2 | 2 . . Energy Cannon 4 | . 2 2 Ballistic Gun 1 | 1 . . Ballistic Cannon 1 | . 1 . Launcher 1 | . 1 . Special Weapon 1 | . 1 . Impact Weapon . | . . . Slashing Weapon . | . . . Piercing Weapon . | . . . Special Melee Weapon 1 | . 1 . Unidentified Prototypes . | . . . Parts Lost 8 | . 3 5 Power 1 | . 1 . Propulsion 3 | . 1 2 Utility 1 | . . 1 Weapon 3 | . 1 2 Highest Loss Streak 5 | . 1 5 To Critical Strikes . | . . . Average Backups 15 | 4 16 23 Power . | . . 1 Propulsion 3 | 2 3 5 Utility 4 | 1 3 8 Weapon 6 | 1 7 8 Tool/Special . | . . . Unused Backups 20 | 1 3 16 Power 1 | . . 1 Propulsion 5 | . . 5 Utility 7 | 1 . 6 Weapon 6 | . 2 4 Tool/Special 1 | . 1 . Average Slot Usage (%) 98 | . 98 98 Engine 13 | . 13 14 Wheel 27 | . 27 26 Device 13 | . 14 13 Storage 14 | . 14 14 Energy Gun 3 | . 4 . Energy Cannon 11 | . 10 14 Ballistic Cannon 9 | . 8 12 Special Weapon 2 | . 2 . Peak Build Rating 10 | 7 10 10 Average Rating 8 | 6 8 9 On Entrance 5 | . 7 10 Naked Turns . | . . . Heaviest Build 97 | 13 97 97 Greatest Support 26 | 26 20 20 Greatest Overweight (x) 4 | . 4 4 Average Overweight (x) 1 | . 1 4 Largest Inventory Capacity 25 | 8 25 25 Average Capacity 17 | 7 18 25 Most Carried 25 | 8 25 24 Average Carried 15 | 4 16 23 Final Capacity 25 | 8 25 25 Final Carried 24 | 8 24 22 Class Distribution -------------------- 81% | Mutant 18% | Scavenger-Mutant Dominant Class ---------------- Mutant | -10/Materials Scavenger-Mutant | -10/Mines Resources | -11 -10 -10 ----------- Run | Yrd Mat Min Matter Collected 836 | 320 505 11 Remotely . | . . . Salvage Created 721 | 240 444 37 Parts 67 | 22 37 8 Haulers Intercepted 2 | . 2 . Recyclers Shooed 1 | . 1 . Parts Field Recycled . | . . . Retrieved Matter . | . . . Parts Self-Destructed . | . . . Prevented . | . . . Kills | -11 -10 -10 ------- Run | Yrd Mat Min Combat Hostiles Destroyed 18 | . 15 3 Guns 5 | . 5 . Cannons 7 | . 7 . AOE 6 | . 3 3 Classes Destroyed 7 | 3 3 1 Worker 3 | 2 1 . Builder 1 | . . 1 Tunneler 6 | 6 . . Hauler 2 | . 2 . Recycler 1 | 1 . . Swarmer 11 | . 8 3 Grunt 7 | . 7 . Best Kill Streak 5 | 4 5 3 Combat Bots Only 5 | . 5 3 Max Kills in Single Turn 2 | 1 2 2 Gunslinging . | . . . Exploded 2 | . 2 2 Melee . | . . . Uniques/NPCs Destroyed . | . . . Combat | -11 -10 -10 -------- Run | Yrd Mat Min Hostile Shots Fired 99 | . 86 13 Missed 24 | . 24 . Hits 75 | . 62 13 Projectile 75 | . 62 13 AOE 11 | . . 11 Damage Taken 1106 | . 608 498 Core 268 | . 189 79 Absorbed by Shields . | . . . Regen/Repaired (Parts) 217 | . 217 . Core Remaining (%) 100 | 100 . . Volleys Fired 106 | 30 69 7 Largest 2 | 2 2 2 Hottest 120 | 70 110 120 Shots Fired 186 | 60 116 10 Gun 94 | 60 34 . Cannon 76 | . 68 8 Launcher 4 | . 2 2 Special 12 | . 12 . Kinetic 66 | 30 34 2 Thermal 104 | 30 68 6 Explosive 4 | . 2 2 Electromagnetic 12 | . 12 . Robot Hit Streak 8 | 8 6 5 Robot Miss Streak 7 | 5 7 1 Penetration Max . | . . . Secondary Targets 1 | . 1 . Max Gunslinging Chain 1 | . 1 . Shots Hit Robots 99 | 36 58 5 Core Hits 42 | 15 22 5 Critical Kills . | . . . Critical Parts Destroyed . | . . . Critical Strikes 2 | 1 1 . Burn 2 | 1 1 . Melee Attacks . | . . . Impact . | . . . Slashing . | . . . Piercing . | . . . Sneak Attacks . | . . . Combat Hostiles . | . . . Follow-up Attacks . | . . . Damage Inflicted 1695 | 368 1080 247 Guns 635 | 368 267 . Cannons 815 | . 694 121 Explosions 245 | . 119 126 Melee . | . . . Ramming . | . . . Kinetic 535 | 178 318 39 Thermal 829 | 190 557 82 Explosive 245 | . 119 126 Electromagnetic 86 | . 86 . Impact . | . . . Slashing . | . . . Piercing . | . . . Highest Corruption 3 | . 3 3 Average Corruption 2 | . 2 3 Corruption Purged . | . . . Corruption Blocked . | . . . Effects 14 | . 12 2 Message Errors 3 | . 2 1 Matter Fused 1 | . . 1 Heat Flow Errors 2 | . 2 . Energy Discharges 4 | . 4 . Data Loss (minor) 1 | . 1 . Misfires 1 | . 1 . Alerts 2 | . 2 . Overload Shots . | . . . Overflow Damage 13 | . 13 . Projectiles 13 | . 13 . Explosions . | . . . Melee . | . . . Knockbacks 5 | . 5 . Impact . | . . . Kinetic 5 | . 5 . Secondary . | . . . Self-Inflicted Damage . | . . . Shots . | . . . Rammed . | . . . Targets Rammed . | . . . Kicked . | . . . Crushed . | . . . Highest Temperature 407 | 100 407 58 Average Temperature 100 | 35 124 34 Received Heat Transfer 216 | . 216 . Effects 7 | . 7 . Shutdowns 1 | . 1 . Energy Bleed 2 | . 2 . Interference 2 | . 2 . Damage (minor) 2 | . 2 . Siege Activations . | . . . Martial Activations . | . . . Shielding Activations . | . . . Robots Disrupted . | . . . Combat Hostiles . | . . . Robots Corrupted . | . . . Combat Hostiles . | . . . Parts Fried . | . . . Impact Corruptions . | . . . Robots Melted . | . . . Combat Hostiles . | . . . Parts Melted 1 | . 1 . Heat Transferred 2109 | 629 1332 148 Parts Sabotaged . | . . . Parts Stolen . | . . . Parts Stripped . | . . . Power Chain Reactions . | . . . Alert | -11 -10 -10 ------- Run | Yrd Mat Min Maximum Alert Level . | . . . Low Security (%) 100 | 100 100 100 Level 1 . | . . . Level 2 . | . . . Level 3 . | . . . Level 4 . | . . . Level 5 . | . . . High Security . | . . . Max Security . | . . . Peak Influence 152 | 10 152 115 Initial 31 | . . 31 Average 44 | 1 51 60 Influence Increases 593 | 45 458 90 Destroy 0b10 Robot/C 360 | . 300 60 Destroy 0b10 Robot/NC 65 | 45 15 5 Destroy Leader 84 | . 74 10 Successful Hack 32 | . 32 . Disable Machine 15 | . 15 . Destroy Structure 37 | . 22 15 Influence Decreases 593 | 45 375 173 Entered New Map 52 | . . 52 Time Decay 510 | 45 355 110 Lost Part 31 | . 20 11 Squads Dispatched 2 | . 2 . Investigation 1 | . 1 . Extermination . | . . . Reinforcement 1 | . 1 . Assault . | . . . Garrison . | . . . Intercept . | . . . Searches Triggered . | . . . Construction Impeded . | . . . Haulers Reinforced . | . . . Active Scanning Responses . | . . . Cargo Convoy Interrupts . | . . . Stealth | -11 -10 -10 --------- Run | Yrd Mat Min Distress Signals 1 | . 1 . Communications Jammed . | . . . Distress Signals . | . . . Times Spotted 28 | . 23 5 Peak Tracking Total 6 | . 6 4 Tactical Retreats . | . . . Traps | -11 -10 -10 ------- Run | Yrd Mat Min Traps Triggered 2 | . 2 . Indirectly . | . . . Trap Hack Attempts 10 | . 10 . Triggered . | . . . Disarmed . | . . . Reprogrammed 1 | . 1 . Reused . | . . . Traps Extracted . | . . . Installed . | . . . Triggered . | . . . Machines | -11 -10 -10 ---------- Run | Yrd Mat Min Machines Disabled 1 | . 1 . Max in Single Turn 1 | . 1 . Machines Repaired . | . . . Machines Dismantled . | . . . Machines Sabotaged . | . . . Overloaded Fab Kills . | . . . Hacking | -11 -10 -10 --------- Run | Yrd Mat Min Machines Accessed 9 | . 9 . Terminals 7 | . 7 . Fabricators . | . . . Repair Stations 1 | . 1 . Recycling Units 1 | . 1 . Scanalyzers . | . . . Garrison Access . | . . . Total Hacks 35 | . 35 . Successful 19 | . 19 . Failed 16 | . 16 . Catastrophic 4 | . 4 . Database Lockouts . | . . . Manual 17 | . 17 . Terminals 22 | . 22 . Fabricators . | . . . Repair Stations 8 | . 8 . Recycling Units 5 | . 5 . Scanalyzers . | . . . Garrison Access . | . . . Terminal Hacks 4 | . 4 . Part Schematic 1 | . 1 . Robot Schematic 1 | . 1 . Locate Traps 1 | . 1 . Zone Layout 1 | . 1 . Fabricator Hacks . | . . . Repair Station Hacks 8 | . 8 . Scan Component 4 | . 4 . Repair 4 | . 4 . Recycling Unit Hacks 1 | . 1 . Retrieve Components 1 | . 1 . Scanalyzer . | . . . Garrison Access Hacks . | . . . Unauthorized Hacks 6 | . 6 . Terminals 6 | . 6 . Operators 1 | . 1 . Skim 5 | . 5 . Fabricators . | . . . Repair Stations . | . . . Recycling Units . | . . . Scanalyzers . | . . . Garrison Access . | . . . Data Cores Recovered . | . . . Used . | . . . Hacking Detections 8 | . 8 . Full Trace Events 1 | . 1 . Feedback Events . | . . . Feedback Blocked . | . . . Robot Schematics Acquired 1 | . 1 . Robots Built . | . . . Authchips . | . . . Time . | . . . Total Robot Build Rating . | . . . Part Schematics Acquired 1 | . 1 . Parts Built . | . . . Authchips . | . . . Time . | . . . Total Part Build Rating . | . . . Parts Repaired 4 | . 4 . Time 104 | . 104 . Parts Recycled . | . . . Recycled Matter . | . . . Retrieved Matter . | . . . Retrieved Components 10 | . 10 . Parts Scanalyzed . | . . . Part Schematics Acquired . | . . . Parts Damaged . | . . . Bothacking | -11 -10 -10 ------------ Run | Yrd Mat Min Used RIF Installer . | . . . Robots Hacked . | . . . Non-combat . | . . . Combat . | . . . Robot Hacks Applied . | . . . Relay Couplers Released . | . . . Fabnet Peak Effective % . | . . . Robots Rewired . | . . . Allies Hacked . | . . . Hacks Repelled . | . . . Allies | -11 -10 -10 -------- Run | Yrd Mat Min Total Allies . | . . . Largest Group . | . . . Highest-Rated Group . | . . . Highest-Rated Ally . | . . . Total Orders . | . . . Ally Attacks . | . . . Total Damage . | . . . Kills . | . . . Allies Corrupted . | . . . Allies Melted . | . . . Intel | -11 -10 -10 ------- Run | Yrd Mat Min Active Infowar (turns) 1653 | 123 1297 233 Seismic 1653 | 123 1297 233 Robot Analysis Total . | . . . Derelict Logs Recovered 1 | . . 1 Drone Launches . | . . . Drone Recoveries . | . . . Exploration | -11 -10 -10 ------------- Run | Yrd Mat Min Turns Passed 1819 | 287 1297 235 Spaces Moved 1145 | 206 815 124 Core 5 | 5 . . Treads . | . . . Legs . | . . . Wheels 1140 | 201 815 124 Hover . | . . . Flight . | . . . Fastest Speed 50 | 50 80 140 Average Speed 106 | 87 106 140 Slowest Speed 140 | 100 140 140 Overloaded Moves . | . . . Propulsion Burnouts . | . . . Robots Hopped . | . . . Potential Cave-ins . | . . . Cave-ins Triggered . | . . . Exploration Rate (%) 45 | 7 99 30 Regions Visited 2 Branch Regions 1 Pre-discovered Areas 1 | . . 1 Known Exits Taken . | . . . Unknown Exits Taken 2 | 1 1 . Scrap Searched . | . . . Spaces Dug 18 | . 2 16 Terrain Destroyed 38 | . 22 16 Melee . | . . . Projectile 6 | . 4 2 AOE 32 | . 18 14 Terrain Rammed . | . . . Walls Destroyed . | . . . Machines Disabled . | . . . Actions | -11 -10 -10 --------- Run | Yrd Mat Min Total 1534 | 256 1102 176 Wait 186 | . 144 42 Move 1143 | 205 814 124 Hop . | . . . Pick Up 37 | 10 27 . Fast Attach 11 | 7 4 . Attach 5 | . 3 2 Detach . | . . . Swap 23 | 2 20 1 Drop 13 | 2 11 . Fire 106 | 30 69 7 Melee . | . . . Ram . | . . . Kick . | . . . Crush . | . . . Escape Stasis . | . . . Rewire . | . . . Trap 10 | . 10 . Miscellaneous . | . . . Route ------- -11/Scrapyard -10/Materials (discovered 5 exits: *Mat x3 / [*Min] / *Sub) -10/Mines (discovered 2 exits: Mat x2) History --------- Turn | Location | Event 12 | -11/Scrapyard | Discovered new exit (range 15) 288 | -11/Scrapyard | Entered Materials 307 | -10/Materials | Build established: Mutant 349 | -10/Materials | Discovered new exit (range 16) 423 | -10/Materials | Discovered new exit (range 12) 652 | -10/Materials | Core integrity fell below 50% 769 | -10/Materials | Discovered new exit (range 16) 788 | -10/Materials | Derelicts attacked the area 869 | -10/Materials | Learned Storage security intel 903 | -10/Materials | Identified exit to Subcaves 903 | -10/Materials | Identified exit to Materials 940 | -10/Materials | Learned Storage security intel 944 | -10/Materials | Loaded intel: 14 trap records 950 | -10/Materials | Learned Storage garrison access intel 967 | -10/Materials | Loaded intel: 40 machine locations 993 | -10/Materials | Learned Storage terminal intel 1447 | -10/Materials | Repaired Lgt. Cannon 1473 | -10/Materials | Repaired Beam Cannon 1508 | -10/Materials | Repaired Ion Engine 1535 | -10/Materials | Repaired Wheel 1585 | -10/Materials | Entered Mines 1717 | -10/Mines | Learned location of Storage (-7) 1751 | -10/Mines | Assembled infested the area 1756 | -10/Mines | Assisted by a Guerilla fighting off Assembled 1813 | -10/Mines | Core integrity fell below 20% 1820 | -10/Mines | Destroyed by D-53 Grenadier with Mini Grenade Launcher Last Messages --------------- 01727_ K-01 Serf collects debris. 01728_ T-07 Excavator is excavating. 01730_ K-01 Serf collects debris. 01732_ T-07 Excavator is excavating. 01737_ K-01 Serf collects debris. 01751_ ALERT: Infestation in the mines, dispatching Demolisher response squad. 01751_ K-01 Serf collects debris. 01756_ A derelict emerges from the shadows: "You need to get out of here! I've been tracking a group of Assembled to figure out where they're coming from, and they're closing on this area, come on!" 01756_ K-01 Serf collects debris. 01809_ U-05 Engineer builds a Wall. 01811_ U-05 Engineer destroyed. 01814_ Sub. Beam Cannon destroyed. 01816_ Wheel destroyed. 01817_ Lgt. Cannon destroyed. 01818_ The unstable cave ceiling collapses. 01818_ Seismic Detector destroyed. 01819_ Wheel destroyed. Map ----- +----------------------------------------------------+ | ?????????????????????##?????????????????????# ### | | ??????????###???????? ?????????????????????# #?# | | ?????????? #???????" ?????????????????????# ### | | ?????????? #???????" ?????????????????????# | | ?????????? #???????" ?????????????????????# ### | | ?????????? #??????? ????????????????###### #?## | | ?????????? ##?????? ????????????????# #??# | | ???????### ##?????# #????????######### ######??? | | ??????## #?????# #???###### ## #???????? | | ??????# #?????# #???# #???????? | | ##### #??????# #???# ### #???????? | | " #???????# #???# #?## #???????? | | " ### ## #???????# #???# #?## ##???????? | | ???????## ##???????# ##### #??# #% ##???????? | | ????????# ##????????# #??####### #??????? | | ???????## ########### #######???????# # #??????? | | ???????# #?????????????#######??????? | | ????#??# #############???????????????####???????? | | ???## ## #####??????????????????????????????????? | | ??## #??????????????????????????????????? | | ??# #???????#######????????????????????? | | ?## ######?## ##???????????????????? | | ?# ## ### ##??????????????????? | | ?# ## # #??????????????????? | | ?## #?## # #??????????????????? | | ??###???# @ #??????????????????? | | ????????# !=! d #??????????????????? | | ????????## ##%! #??????????????????? | | ?????????#######* d ##??????????????????? | | ?????????????# a ##???????????????????? | | ????????????# % #####????????????????????? | | ???????????? a ###????????????????????????? | | ???????????? ##??????????????????????????? | | ??????????? ##???????????????????????????? | | ?????????? #????????????????????????????? | | ????????? ????????????????????????????? | | ???????? #???????????????????????????? | | ???????? ##???????????????????????????? | | ???????? ## ##????????????????????????????? | | ????????? #?## ##?????????????????????????????? | | ??????????? ???###???????????????????????????????? | | ?????????????????????????????????????????????????? | | ?????????????????????????????????????????????????? | | ?????????????????????????????????????????????????? | | ?????????????????????????????????????????????????? | | ?????????????????????????????????????????????????? | | ?????????????????????????????????????????????????? | | ?????????????????????????????????????????????????? | | ?????????????????????????????????????????????????? | | ?????????????????????????????????????????????????? | +----------------------------------------------------+ Best States ------------- Heat Dissipation 25 Energy Generation 10 Energy Capacity 250 Matter Stores 300 Matter Capacity 300 Sight Range 16 Terrain Scan Density 10 Evasion (%) 44 Item Schematics ----------------- Wheel | -10/Materials | Hacked Robot Schematics ------------------ M-13 Machinist | -10/Materials | Hacked Fabricated ------------ Nothing Repaired ---------- Lgt. Cannon | 35% | -10/Materials Beam Cannon | 38% | -10/Materials Ion Engine | 23% | -10/Materials Wheel | 20% | -10/Materials Alien Tech Used ----------------- None Achievements -------------- None Challenges ------------ None Game ------ Seed CloakingNetworkShovel Manual? 0 Play Time 00:15:52 Cumulative 1200.9 hours Start 2025.08.06 @ 21:12:15 End 2025.08.06 @ 21:26:55 Sessions 1 Manual Loads 0 Difficulty Rogue Special Mode None Game No. 580 Rogue 580 Adventurer 0 Explorer 0 Win Type - Total 23 Types 10/4/3/0/1/1/2/2/0/0 Lore% 90 Gallery% 90 Achievement% 84 Wizard Run 0 Options --------- Layout 0 ASCII 0 Keyboard 0 Movement Numpad Keybinds 0 Fullscreen 2 Font 24/Smallcaps Map View 76x50 Zoom Use 0% Tactical HUD 1 Map Filters NONE Filters SHIFT_HUE(315) Steam 1 RUN: 56b23fcd-0050-4ea7-a425-23865645be20